bitfinex/quotes_SOLUSD_20250402
["timestamp","ask_amount","ask_price","bid_price","bid_amount"]
[1743593941732,7.9405,125.94,125.91,235.42]
[1743593941913,20.54374824,125.94,125.91,235.42]
[1743593944535,7.9405,125.94,125.91,255.42]
[1743593944725,7.9399,125.95,125.91,263.362]
[1743593945043,7.9399,125.95,125.91,344.262]
[1743593945341,7.9399,125.95,125.91,336.32]
[1743593948642,12.66624824,125.96,125.91,336.32]
[1743593948643,20.60534824,125.96,125.91,344.2621]
[1743593948842,8.0021,125.96,125.93,20.0]
[1743593953629,8.0021,125.96,125.94,228.52]
[1743593953940,8.0021,125.96,125.95,6.86]
[1743593954123,0.063,125.96,125.95,6.86]
[1743593955554,12.66624824,125.96,125.95,6.86]
[1743593955759,12.66624824,125.96,125.94,228.52]
[1743593956059,12.60324824,125.95,125.94,228.52]
[1743593956236,20.54284824,125.95,125.94,235.36]
[1743593959889,39.1924971,125.95,125.94,228.52]
[1743593960175,18.64964886,125.94,125.93,6.84]
[1743593960334,31.2528971,125.94,125.93,6.84]
[1743593960536,12.60324824,125.94,125.93,6.84]
[1743593961576,20.54344824,125.94,125.93,6.84]
[1743593963286,20.54344824,125.94,125.91,228.52]
[1743593963579,20.54344824,125.94,125.92,6.84]
[1743593965184,12.60324824,125.93,125.92,6.84]
[1743593965881,12.60324824,125.94,125.92,6.84]
[1743593967286,7.9409,125.93,125.92,6.84]
[1743593968384,7.9404,125.94,125.92,6.84]
[1743593968588,7.9404,125.94,125.92,235.38]
[1743593973285,7.9404,125.94,125.93,228.54]
[1743593975595,20.54364824,125.94,125.93,228.54]
[1743593978107,20.54364824,125.94,125.92,6.84]
[1743593979406,7.9404,125.94,125.92,6.84]
[1743593981185,12.60324824,125.94,125.92,6.84]
[1743593983500,7.9409,125.93,125.92,6.84]
[1743593985208,20.54414824,125.93,125.92,6.84]
[1743593985823,18.64964886,125.92,125.89,228.57]
[1743593986003,12.60324824,125.9,125.89,235.41]
[1743593986514,18.64964886,125.89,125.87,228.57]
[1743593986692,12.60324824,125.88,125.87,228.57]
[1743593987420,20.54724824,125.88,125.87,228.57]
[1743593987710,20.54724824,125.88,125.87,235.41]
[1743593989416,109.46999006,125.88,125.84,0.03]
[1743593989709,12.60324824,125.85,125.84,0.03]
[1743593990610,12.60324824,125.85,125.84,6.87]
[1743593991413,20.54914824,125.85,125.84,6.87]
[1743593991708,20.54914824,125.85,125.84,0.03]
[1743593991914,20.54914824,125.85,125.84,6.87]
[1743593993919,7.9459,125.85,125.84,6.87]
[1743593994219,20.54664824,125.89,125.84,26.87]
[1743593994536,12.60324824,125.86,125.84,6.87]
[1743593995529,12.60324824,125.86,125.84,235.49]
[1743593995706,7.9459,125.85,125.84,235.49]
[1743593996905,7.9459,125.85,125.84,235.51]
[1743593999007,12.60324824,125.85,125.84,235.51]
[1743594001929,20.54914824,125.85,125.84,235.51]
[1743594002510,20.54914824,125.85,125.84,235.49]
[1743594004735,59.0636971,125.85,125.82,0.03]
[1743594005031,46.46044886,125.85,125.83,6.84]
[1743594006216,27.8064,125.87,125.83,6.84]
[1743594006618,12.60324824,125.86,125.83,6.84]
[1743594006814,12.60324824,125.86,125.84,0.03]
[1743594008432,12.60324824,125.85,125.84,0.03]
[1743594010840,20.54914824,125.85,125.84,0.03]
[1743594011954,18.64964886,125.84,125.82,0.03]
[1743594012141,31.2528971,125.83,125.82,0.03]
[1743594012317,12.60324824,125.82,125.81,228.71]
[1743594012939,20.55104824,125.82,125.81,228.71]
[1743594013140,20.55104824,125.82,125.81,235.59]
[1743594013324,20.55104824,125.82,125.8,0.03]
[1743594013521,26.59744886,125.82,125.8,0.03]
[1743594013835,12.60324824,125.81,125.8,0.03]
[1743594014420,12.60324824,125.81,125.8,6.91]
[1743594014828,20.55164824,125.81,125.8,6.91]
[1743594016915,7.9484,125.81,125.8,6.91]
[1743594020928,7.9484,125.81,125.8,235.67]
[1743594021642,7.948,125.82,125.8,235.67]
[1743594022845,12.60324824,125.83,125.8,235.67]
[1743594023638,12.60324824,125.82,125.8,235.67]
[1743594024151,12.60324824,125.83,125.8,235.67]
[1743594024746,27.6761,125.87,125.81,20.0]
[1743594025050,7.9453,125.86,125.81,20.0]
[1743594025251,8.008,125.87,125.83,20.0]
[1743594025545,8.008,125.87,125.84,6.9]
[1743594026330,20.61124824,125.87,125.84,6.9]
[1743594028551,12.60324824,125.86,125.84,6.9]
[1743594029827,12.60324824,125.85,125.84,6.9]
[1743594030430,20.54914824,125.85,125.84,6.9]
[1743594032837,7.9459,125.85,125.84,6.9]
[1743594033235,39.1987971,125.85,125.84,6.9]
[1743594035744,20.54914824,125.85,125.84,6.9]
[1743594037235,39.1987971,125.85,125.84,6.9]
[1743594040362,7.9459,125.85,125.84,6.9]
[1743594041166,8.0089,125.85,125.84,6.9]
[1743594054073,0.063,125.85,125.84,6.9]
[1743594055249,0.063,125.85,125.84,8.4458]
[1743594055881,0.063,125.85,125.84,6.9]
[1743594065109,0.063,125.85,125.83,228.72]
[1743594065110,12.66624824,125.85,125.83,228.72]
[1743594065386,12.60324824,125.84,125.83,235.62]
[1743594066294,20.54974824,125.84,125.83,235.62]
[1743594070609,7.9465,125.84,125.83,235.62]
[1743594071912,20.54974824,125.84,125.83,235.62]
[1743594075791,20.54974824,125.84,125.83,228.72]
[1743594076093,20.54974824,125.84,125.83,235.62]
[1743594077190,12.66624824,125.85,125.83,235.62]
[1743594077970,12.60324824,125.84,125.83,235.62]
[1743594079276,20.54974824,125.84,125.83,228.72]
[1743594080372,20.54974824,125.84,125.82,6.9]
[1743594080574,12.60324824,125.83,125.82,6.9]
[1743594082299,20.55044824,125.83,125.82,6.9]
[1743594085193,20.55044824,125.83,125.82,6.88]
[1743594085371,7.9472,125.83,125.82,6.88]
[1743594091107,7.9465,125.84,125.82,6.88]
[1743594091307,12.60324824,125.83,125.82,6.88]
[1743594092583,12.60324824,125.83,125.81,6.91]
[1743594092783,12.60324824,125.82,125.81,6.91]
[1743594093425,20.55104824,125.82,125.81,6.91]
[1743594093992,7.9478,125.82,125.81,6.91]
[1743594097009,7.9478,125.82,125.81,0.03]
[1743594097216,20.55104824,125.82,125.81,0.03]
[1743594100721,20.55104824,125.82,125.81,0.0001]
[1743594101017,20.55104824,125.82,125.81,6.8801]
[1743594101237,20.55104824,125.82,125.8,0.03]
[1743594101422,12.60324824,125.81,125.8,0.03]
[1743594102293,12.60324824,125.81,125.8,0.0001]
[1743594102482,12.60324824,125.81,125.79,228.72]
[1743594102687,12.60324824,125.8,125.79,228.72]
[1743594103419,7.9491,125.8,125.79,228.72]
[1743594103719,7.9491,125.8,125.79,235.6]
[1743594103918,20.55234824,125.8,125.79,228.72]
[1743594104117,20.55234824,125.8,125.79,235.6]
[1743594106217,20.55234824,125.8,125.79,228.72]
[1743594106613,40.42514824,125.8,125.77,0.03]
[1743594106809,12.60324824,125.78,125.77,0.03]
[1743594107001,27.8219,125.8,125.77,0.03]
[1743594109608,27.8219,125.8,125.77,228.81]
[1743594110622,7.9491,125.8,125.77,228.81]
[1743594111427,7.9491,125.8,125.78,20.0]
[1743594111815,8.0121,125.8,125.78,20.0]
[1743594117441,0.063,125.8,125.78,20.0]
[1743594119234,0.063,125.8,125.79,228.78]
[1743594122438,0.063,125.8,125.79,309.82216157]
[1743594122644,0.063,125.8,125.79,325.55226157]
[1743594122845,0.063,125.8,125.79,344.20191043]
[1743594123769,0.063,125.8,125.79,344.23191043]
[1743594127265,0.063,125.83,125.82,38.79181043]
[1743594127561,0.063,125.83,125.82,128.21401043]
[1743594129154,0.063,125.83,125.82,136.16181043]
[1743594132851,0.063,125.83,125.82,128.21401043]
[1743594134155,0.063,125.83,125.82,121.33401043]
[1743594134335,0.063,125.83,125.82,128.21401043]
[1743594135057,0.063,125.83,125.82,356.89401043]
[1743594135743,0.063,125.83,125.82,364.84181043]
[1743594136345,0.063,125.83,125.82,356.89401043]
[1743594137960,0.063,125.83,125.82,364.84181043]
[1743594138160,0.063,125.83,125.82,356.89401043]
[1743594141264,0.063,125.83,125.82,364.84181043]
[1743594147780,0.063,125.83,125.82,356.89401043]
[1743594148660,0.063,125.83,125.82,329.58]
[1743594149080,0.063,125.83,125.82,336.42]
[1743594153571,0.063,125.83,125.82,336.56216157]
[1743594153774,0.063,125.83,125.82,355.21181043]
[1743594154109,0.063,125.85,125.84,58.79181043]
[1743594154264,0.063,125.87,125.86,20.14216157]
[1743594154466,0.063,125.87,125.86,107.88216157]
[1743594154668,0.063,125.87,125.86,134.47711043]
[1743594155097,0.063,125.87,125.86,140.74693597]
[1743594155283,0.063,125.87,125.86,134.47711043]
[1743594156402,8.60298338,125.92,125.9,20.0]
[1743594156698,7.9418,125.92,125.91,6.86]
[1743594159288,7.9418,125.92,125.91,235.48]
[1743594159592,7.9418,125.92,125.91,235.46]
[1743594163690,40.39884824,125.92,125.9,6.84]
[1743594163879,12.60324824,125.91,125.9,6.84]
[1743594164303,27.7956,125.92,125.9,6.84]
[1743594164901,40.39884824,125.92,125.9,6.84]
[1743594165208,27.7956,125.92,125.9,6.84]
[1743594165410,40.39884824,125.92,125.9,6.84]
[1743594165787,27.7956,125.92,125.9,6.84]
[1743594166808,40.39884824,125.92,125.9,6.84]
[1743594170308,7.9418,125.92,125.9,6.84]
[1743594170610,7.9418,125.92,125.9,26.84]
[1743594170988,20.54504824,125.92,125.9,26.84]
[1743594171409,20.54504824,125.92,125.9,26.87]
[1743594171711,20.60804824,125.92,125.9,26.87]
[1743594174514,20.60804824,125.92,125.9,255.45]
[1743594178606,8.0048,125.92,125.9,255.45]
[1743594180822,20.60804824,125.92,125.9,255.45]
[1743594188003,12.60324824,125.91,125.88,309.48]
[1743594188203,12.60324824,125.89,125.86,228.58]
[1743594188415,12.60324824,125.87,125.84,15.21388961]
[1743594188629,12.60324824,125.85,125.81,100.9]
[1743594188934,12.60324824,125.83,125.81,100.9]
[1743594189312,12.60324824,125.83,125.82,6.84]
[1743594189708,20.55044824,125.83,125.82,6.84]
[1743594191836,12.60324824,125.84,125.82,6.84]
[1743594192141,12.60324824,125.84,125.81,100.9]
[1743594192310,12.60324824,125.84,125.83,6.84]
[1743594194330,20.54974824,125.84,125.83,6.84]
[1743594194832,40.41614824,125.84,125.8,0.03]
[1743594195005,40.41614824,125.84,125.83,6.84]
[1743594198014,40.41614824,125.84,125.81,228.67]
[1743594198228,12.60324824,125.83,125.81,228.67]
[1743594199322,12.60324824,125.83,125.82,6.84]
[1743594199818,20.55044824,125.83,125.82,6.84]
[1743594200628,20.55044824,125.83,125.82,6.86]
[1743594201140,20.55044824,125.83,125.81,228.67]
[1743594201341,12.60324824,125.82,125.81,228.67]
[1743594201645,12.60324824,125.82,125.81,235.53]
[1743594202835,20.55104824,125.82,125.81,235.53]
[1743594204461,7.9478,125.82,125.81,235.53]
[1743594209033,20.55104824,125.82,125.81,235.53]
[1743594210926,20.55104824,125.82,125.81,228.67]
[1743594211117,20.55104824,125.82,125.81,235.53]
[1743594212169,7.9478,125.82,125.81,235.53]
[1743594212343,7.9478,125.82,125.81,6.89]
[1743594215540,20.55104824,125.82,125.81,6.89]
[1743594219367,20.55104824,125.82,125.81,0.03]
[1743594221555,7.9478,125.82,125.81,0.03]
[1743594222639,7.9472,125.83,125.81,0.03]
[1743594222844,20.55044824,125.83,125.81,0.03]
[1743594223354,12.60324824,125.82,125.81,0.03]
[1743594224131,20.55044824,125.83,125.81,0.03]
[1743594229669,12.60324824,125.83,125.81,0.03]
[1743594230768,7.9478,125.82,125.81,0.03]
[1743594231749,20.55104824,125.82,125.81,0.03]
[1743594239873,7.9478,125.82,125.81,0.03]
[1743594241674,155.38164689,125.87,125.83,20.0]
[1743594241675,12.37406084,125.87,125.83,20.0]
[1743594241978,24.97730908,125.87,125.84,6.86]
[1743594242783,7.9453,125.86,125.84,6.86]
[1743594245386,20.54854824,125.86,125.84,6.86]
[1743594247484,12.60324824,125.85,125.84,6.86]
[1743594248688,7.9453,125.86,125.84,6.86]
[1743594248900,20.54854824,125.86,125.84,6.86]
[1743594249393,12.60324824,125.85,125.84,6.86]
[1743594252910,20.54914824,125.85,125.84,6.86]
[1743594253609,7.9459,125.85,125.84,6.86]
[1743594266808,6.0785,125.89,125.84,6.86]
[1743594267015,12.60324824,125.89,125.85,20.0]
[1743594267796,7.9434,125.89,125.85,20.0]
[1743594269314,19.9206,125.9,125.85,20.0]
[1743594269512,32.52384824,125.9,125.85,20.0]
[1743594269902,12.66624824,125.9,125.85,27.9458]
[1743594270110,12.66624824,125.9,125.87,20.0]
[1743594270415,12.66624824,125.9,125.88,6.84]
[1743594271186,7.9434,125.89,125.88,6.84]
[1743594275321,0.063,125.9,125.88,6.84]
[1743594279507,0.063,125.9,125.88,235.51]
[1743594286226,8.0058,125.9,125.88,235.51]
[1743594289416,12.60324824,125.89,125.88,235.51]
[1743594291032,20.60904824,125.9,125.88,235.51]
[1743594292019,8.0058,125.9,125.88,235.51]
[1743594295835,0.063,125.9,125.88,235.51]
[1743594306159,0.063,125.9,125.89,20.0]
[1743594308765,0.063,125.9,125.89,28.08556157]
[1743594310043,0.063,125.9,125.89,108.8434]
[1743594310461,0.063,125.9,125.89,127.63521043]
[1743594313869,0.063,125.9,125.89,129.18651043]
[1743594314067,0.063,125.92,125.91,20.14216157]
[1743594314373,0.063,125.92,125.91,101.04216157]
[1743594316873,0.06299999,125.92,125.91,108.98426157]
[1743594317773,0.06299999,125.92,125.91,135.23931043]
[1743594318870,0.063,125.93,125.92,18.79181043]
[1743594319059,0.063,125.93,125.92,27.21904747]
[1743594321383,0.063,125.93,125.92,35.16054747]
[1743594324286,0.063,125.93,125.92,33.57331043]
[1743594324664,0.063,125.93,125.92,114.47331043]
[1743594325969,0.063,125.93,125.92,116.06057372]
[1743594326289,0.063,125.94,125.93,38.79181043]
[1743594328563,0.063,125.94,125.93,46.73271043]
[1743594330584,0.063,125.94,125.93,127.63271043]
[1743594332587,0.063,125.94,125.93,129.22000493]
[1743594334067,0.063,125.94,125.93,127.63271043]
[1743594337507,0.063,125.94,125.93,134.47271043]
[1743594339089,0.063,125.94,125.93,127.63271043]
[1743594339293,0.063,125.94,125.93,100.9]
[1743594339478,12.66624824,125.94,125.93,6.84]
[1743594340491,12.66624824,125.94,125.93,6.87]
[1743594340792,0.063,125.94,125.93,6.87]
[1743594341595,8.0032,125.94,125.93,6.87]
[1743594341772,0.063,125.94,125.93,26.87]
[1743594344793,0.063,125.94,125.93,20.03]
[1743594345002,0.063,125.94,125.93,26.87]
[1743594352307,0.063,125.94,125.93,27.01216157]
[1743594353402,0.063,125.94,125.93,34.95306157]
[1743594353604,0.063,125.94,125.93,27.01216157]
[1743594355689,0.063,125.94,125.93,34.95306157]
[1743594356094,0.063,125.94,125.93,53.60271043]
[1743594357118,0.063,125.94,125.93,134.50271043]
[1743594363043,0.063,125.94,125.93,107.77]
[1743594369723,0.063,125.94,125.93,336.25]
[1743594371320,0.063,125.94,125.93,362.98271043]
[1743594374114,0.063,125.94,125.93,355.04181043]
[1743594374314,0.063,125.94,125.93,336.25]
[1743594374615,0.063,125.94,125.93,255.35]
[1743594378145,12.66624824,125.94,125.93,228.51]
[1743594378436,12.66624824,125.94,125.93,235.35]
[1743594379236,20.60644824,125.94,125.93,235.35]
[1743594380931,0.063,125.94,125.93,255.35]
[1743594381260,8.0032,125.94,125.93,255.35]
[1743594381944,20.60644824,125.94,125.93,235.35]
[1743594382958,20.60644824,125.94,125.93,228.51]
[1743594383254,20.60644824,125.94,125.93,235.35]
[1743594387259,20.60644824,125.94,125.93,228.51]
[1743594387558,20.60644824,125.94,125.93,235.35]
[1743594393567,20.60644824,125.94,125.93,6.87]
[1743594403070,8.0032,125.94,125.93,6.87]
[1743594403271,20.60644824,125.94,125.93,6.87]
[1743594403974,20.60644824,125.94,125.93,0.03]
[1743594404181,20.60644824,125.94,125.93,6.87]
[1743594404756,90.8701412,125.94,125.91,0.03]
[1743594404969,12.60324824,125.92,125.91,0.03]
[1743594405677,20.54474824,125.92,125.91,0.03]
[1743594405883,20.54474824,125.92,125.91,6.87]
[1743594406351,20.54474824,125.92,125.91,0.03]
[1743594406755,20.54474824,125.92,125.91,6.87]
[1743594406948,7.9415,125.92,125.91,6.87]
[1743594407476,20.54474824,125.92,125.91,6.87]
[1743594414578,20.54474824,125.92,125.9,228.54]
[1743594414885,12.60324824,125.91,125.9,228.54]
[1743594415780,20.54534824,125.91,125.9,235.38]
[1743594417260,20.54534824,125.91,125.9,6.84]
[1743594420191,40.40074824,125.91,125.88,0.03]
[1743594420485,12.60324824,125.89,125.88,0.03]
[1743594421284,12.60324824,125.89,125.88,6.87]
[1743594421893,20.54664824,125.89,125.88,6.87]
[1743594427406,20.54664824,125.89,125.88,0.03]
[1743594427584,20.54664824,125.89,125.88,6.87]
[1743594429373,20.54664824,125.89,125.88,0.03]
[1743594429768,40.40524824,125.89,125.84,228.58]
[1743594429974,12.60324824,125.87,125.84,228.58]
[1743594430472,27.802,125.89,125.84,228.58]
[1743594430473,20.54854824,125.86,125.84,228.58]
[1743594431078,20.54854824,125.86,125.85,6.84]
[1743594433184,20.54854824,125.86,125.84,228.58]
[1743594433493,12.60324824,125.85,125.84,235.42]
[1743594433684,12.60324824,125.85,125.84,228.58]
[1743594433874,12.60324824,125.85,125.84,235.42]
[1743594434700,20.54914824,125.85,125.84,235.42]
[1743594435693,7.9459,125.85,125.84,235.42]
[1743594437603,7.9453,125.86,125.84,235.42]
[1743594438002,20.54854824,125.86,125.84,235.42]
[1743594441303,20.54854824,125.86,125.84,6.84]
[1743594444306,7.9453,125.86,125.84,6.84]
[1743594445106,12.60324824,125.85,125.84,6.84]
[1743594446817,40.41404824,125.85,125.82,228.68]
[1743594447022,12.60324824,125.84,125.83,6.84]
[1743594449228,20.54974824,125.84,125.83,6.84]
[1743594460606,7.9465,125.84,125.83,6.84]
[1743594463419,12.60324824,125.85,125.83,6.84]
[1743594463736,0.063,125.88,125.84,20.0]
[1743594463916,8.0073,125.88,125.84,21.5988]
[1743594465233,0.063,125.88,125.85,228.72]
[1743594469365,20.61024824,125.88,125.85,228.72]
[1743594469643,8.007,125.88,125.85,228.72]
[1743594473246,8.007,125.88,125.86,20.0]
[1743594473432,8.007,125.88,125.87,6.84]
[1743594475022,0.063,125.88,125.87,6.84]
[1743594481449,0.063,125.88,125.87,14.7847]
[1743594481632,0.063,125.88,125.87,14.92686157]
[1743594481832,0.063,125.88,125.87,16.50036157]
[1743594482542,0.063,125.88,125.87,6.84]
[1743594484053,20.61024824,125.88,125.87,6.84]
[1743594485461,8.007,125.88,125.87,6.84]
[1743594486353,0.063,125.88,125.87,6.84]
[1743594492754,0.063,125.88,125.86,228.64]
[1743594494058,0.063,125.88,125.87,6.84]
[1743594495256,0.063,125.88,125.87,0.03]
[1743594495434,0.063,125.88,125.87,6.87]
[1743594495634,12.66624824,125.88,125.87,6.87]
[1743594495837,20.61024824,125.88,125.87,6.87]
[1743594500560,8.007,125.88,125.87,6.87]
[1743594506061,20.61024824,125.88,125.87,6.87]
[1743594507980,8.007,125.88,125.87,6.87]
[1743594509370,0.063,125.88,125.87,6.87]
[1743594519993,12.66624824,125.88,125.87,6.87]
[1743594520787,0.063,125.88,125.87,6.87]
[1743594520989,12.66624824,125.88,125.87,0.03]
[1743594521288,12.66624824,125.88,125.87,6.87]
[1743594522087,20.61024824,125.88,125.87,6.87]
[1743594530106,39.2598971,125.88,125.87,6.87]
[1743594535972,8.007,125.88,125.87,6.87]
[1743594538124,0.063,125.88,125.87,6.87]
[1743594539503,12.66624824,125.88,125.87,6.87]
[1743594540194,0.063,125.88,125.87,6.87]
[1743594540399,12.66624824,125.88,125.87,6.87]
[1743594541202,18.64964886,125.87,125.85,6.82]
[1743594541409,12.60324824,125.86,125.85,6.82]
[1743594542434,7.9459,125.85,125.82,228.66]
[1743594542639,7.9459,125.85,125.84,6.82]
[1743594542965,27.8108,125.85,125.84,6.82]
[1743594543136,7.9459,125.85,125.84,6.82]
[1743594543503,7.9447,125.87,125.84,6.82]
[1743594543806,8.0073,125.88,125.84,6.82]
[1743594547116,12.66624824,125.88,125.84,6.82]
[1743594547622,0.063,125.88,125.84,6.82]
[1743594547973,12.66624824,125.88,125.84,6.82]
[1743594548247,0.063,125.88,125.84,6.82]
[1743594548451,12.66624824,125.88,125.84,6.82]
[1743594550747,7.9447,125.87,125.84,6.82]
[1743594551135,40.40964824,125.87,125.85,6.82]
[1743594554262,40.40964824,125.87,125.85,6.85]
[1743594561379,7.9447,125.87,125.85,6.85]
[1743594561767,8.0073,125.88,125.85,26.85]
[1743594562082,8.0071,125.88,125.85,26.85]
[1743594563570,0.063,125.88,125.85,26.85]
[1743594572665,0.063,125.88,125.86,228.64]
[1743594580289,0.063,125.88,125.87,6.82]
[1743594583694,0.063,125.88,125.87,36.3103]
[1743594585170,0.063,125.88,125.87,28.3656]
[1743594586774,0.063,125.88,125.87,36.45246157]
[1743594588904,0.063,125.88,125.87,29.63246157]
[1743594589102,0.063,125.88,125.87,36.45246157]
[1743594591607,0.063,125.88,125.87,117.35246157]
[1743594594608,0.063,125.91,125.87,117.35246157]
[1743594594609,7.6922,125.94,125.9,20.0]
[1743594594789,7.6922,125.94,125.91,6.82]
[1743594595611,8.0029,125.95,125.91,6.82]
[1743594596609,8.0029,125.95,125.92,20.0]
[1743594597911,8.0029,125.95,125.92,248.58]
[1743594602690,0.063,125.95,125.92,256.5213]
[1743594602893,0.063,125.95,125.94,20.0]
[1743594603414,0.063,125.95,125.92,248.58]
[1743594603612,12.60324824,125.94,125.92,228.58]
[1743594604618,7.9409,125.93,125.92,228.58]
[1743594605306,7.9409,125.93,125.92,235.4]
[1743594607217,7.9402,125.94,125.92,235.4]
[1743594610921,7.9402,125.94,125.92,228.58]
[1743594611122,7.9402,125.94,125.93,6.82]
[1743594617539,20.54344824,125.94,125.92,0.03]
[1743594617703,12.60324824,125.93,125.92,0.03]
[1743594618210,20.54414824,125.93,125.91,228.54]
[1743594618631,20.54414824,125.93,125.92,6.82]
[1743594619428,20.54414824,125.93,125.91,228.54]
[1743594620015,12.60324824,125.92,125.91,228.54]
[1743594620424,7.9415,125.92,125.91,228.54]
[1743594620733,20.54474824,125.92,125.91,235.36]
[1743594624532,7.9415,125.92,125.91,235.36]
[1743594625551,7.9415,125.92,125.91,235.39]
[1743594626516,7.9415,125.92,125.91,6.85]
[1743594629268,7.9415,125.92,125.91,0.03]
[1743594629449,7.9415,125.92,125.91,6.85]
[1743594637551,8.0045,125.92,125.91,6.85]
[1743594638768,12.66624824,125.92,125.91,6.8201]
[1743594638961,39.2944971,125.92,125.91,0.0001]
[1743594640251,26.69124886,125.92,125.91,0.0001]
[1743594640562,39.2944971,125.92,125.91,0.0001]
[1743594640762,47.2359971,125.92,125.91,0.0001]
[1743594641551,28.58634824,125.92,125.91,0.0001]
[1743594641876,8.0045,125.92,125.91,0.0001]
[1743594642767,20.60774824,125.92,125.91,0.0001]
[1743594645468,20.60774824,125.92,125.91,6.8201]
[1743594645670,59.1111971,125.92,125.86,228.59]
[1743594645873,12.60324824,125.9,125.87,20.0]
[1743594646082,12.60324824,125.91,125.87,20.0]
[1743594646756,7.9428,125.9,125.88,6.82]
[1743594649663,8.0048,125.92,125.89,20.0]
[1743594652258,7.3508,125.92,125.89,20.0]
[1743594655364,7.3508,125.92,125.9,228.58]
[1743594660251,19.9142,125.94,125.91,20.0]
[1743594660252,0.063,125.94,125.91,20.0]
[1743594660584,0.063,125.94,125.93,20.0]
[1743594661370,0.063,125.94,125.93,20.14216157]
[1743594661574,0.063,125.94,125.93,20.0]
[1743594661784,0.063,125.94,125.93,20.14216157]
[1743594667577,0.063,125.94,125.93,20.0]
[1743594667772,12.66624824,125.94,125.93,26.82]
[1743594668152,0.063,125.94,125.93,26.82]
[1743594669684,0.063,125.94,125.93,6.82]
[1743594670057,12.66624824,125.94,125.93,6.82]
[1743594670755,0.063,125.94,125.93,6.82]
[1743594670958,8.0032,125.94,125.93,6.82]
[1743594671382,20.60644824,125.94,125.93,6.82]
[1743594675475,8.0032,125.94,125.93,6.82]
[1743594676369,20.60644824,125.94,125.93,6.82]
[1743594678368,8.0032,125.94,125.93,6.82]
[1743594679287,20.60644824,125.94,125.93,6.82]
[1743594683796,8.0032,125.94,125.93,6.82]
[1743594683986,20.60644824,125.94,125.93,6.82]
[1743594687097,20.60644824,125.94,125.9,228.58]
[1743594687098,117.2021412,125.94,125.9,228.58]
[1743594687286,12.60324824,125.91,125.9,228.58]
[1743594687801,20.54534824,125.91,125.9,228.58]
[1743594688905,20.54534824,125.91,125.87,35.21084543]
[1743594689080,12.60324824,125.88,125.86,0.03]
[1743594689284,12.60324824,125.87,125.86,0.03]
[1743594690283,12.60324824,125.87,125.85,235.45]
[1743594690510,12.60324824,125.86,125.85,235.45]
[1743594692494,20.54854824,125.86,125.85,235.45]
[1743594692814,20.54854824,125.86,125.81,248.63]
[1743594692815,40.41184824,125.86,125.81,248.63]
[1743594693004,12.60324824,125.84,125.82,6.88]
[1743594693310,12.60324824,125.83,125.82,6.88]
[1743594693906,7.9478,125.82,125.81,248.63]
[1743594694103,7.9478,125.82,125.81,255.51]
[1743594694299,20.55104824,125.82,125.81,235.51]
[1743594694513,20.55104824,125.82,125.81,228.63]
[1743594695496,70.9640412,125.82,125.8,0.03]
[1743594695698,12.60324824,125.81,125.8,6.91]